fUSD/lending_fUSD_20250116
["ID","MTS","AMOUNT","RATE_DAILY","PERIOD"]
[349236055,1737063040214,-1992.15159663,0.00032033,2]
[349236056,1737063040223,-1760.05084112,0.00032035,2]
[349236057,1737063040232,-320.36198326,0.00032037,4]
[349236058,1737063040242,-17370.15331756,0.00032042,4]
[349236059,1737063040251,-2425.05785032,0.00032043,4]
[349236060,1737063040261,-200.0,0.00032044,2]
[349236061,1737063040270,-200.0,0.00032046,2]
[349236062,1737063040279,-36134.184,0.00032046,2]
[349236063,1737063040288,-1767.7526,0.00032046,2]
[349236064,1737063040297,-69120.92191366,0.00032046,2]
[349236065,1737063040306,-5260.2433,0.00032046,2]
[349236066,1737063040315,-5000.0,0.00032046,2]
[349236067,1737063040324,-1760.05084112,0.00032046,2]
[349236068,1737063040333,-165.16844356,0.00032046,2]
[349236069,1737063040343,-302.1703,0.00032046,2]
[349236070,1737063040352,-5860.2801816,0.00032049,2]
[349236071,1737063040361,-251235.33078329,0.00032051,2]
[349236072,1737063040371,-2124.96170307,0.00032052,4]
[349236073,1737063040381,-2273.49173467,0.00032053,2]
[349236074,1737063040390,-320.36198326,0.00032054,4]
[349236075,1737063040399,-320.36198326,0.00032055,4]
[349236076,1737063040409,-16284.51873521,0.00032055,2]
[349236077,1737063040418,-17370.15331756,0.00032057,4]
[349236078,1737063040428,-251235.33078329,0.00032057,2]
[349236079,1737063040437,-5860.2801816,0.00032058,2]
[349236080,1737063040448,-2425.05785032,0.00032065,4]
[349236081,1737063040458,-201.0,0.00032069,3]
[349236082,1737063040468,-267984.35283552,0.00032072,4]
[349236083,1737063040477,-500.0,0.00032073,5]
[349236084,1737063040488,-300.3393593,0.00032073,2]
[349236085,1737063040498,-200.0,0.00032074,2]
[349236086,1737063040507,-267984.35283552,0.00032075,4]
[349236087,1737063040517,-2425.05785032,0.00032076,4]
[349236088,1737063040527,-267984.35283552,0.00032088,4]
[349236089,1737063040536,-320.36198326,0.00032089,4]
[349236090,1737063040546,-209.97959916,0.0003209,2]
[349236091,1737063040557,-17370.15331756,0.00032098,4]
[349236092,1737063040569,-16284.51873521,0.00032099,2]
[349236093,1737063040588,-16284.51873521,0.000321,2]
[349236094,1737063040606,-2124.96170307,0.000321,4]
[349236095,1737063040616,-218.07230935,0.00032145,15]
[349236096,1737063040627,-500.0,0.00032145,2]
[349236097,1737063040638,-1000.0,0.00032145,30]
[349236098,1737063040648,-556592.74304139,0.00032146,7]
[349236099,1737063040675,-8000.0,0.00032146,7]
[349236100,1737063040691,-36147.6469424,0.00032146,7]
[349236101,1737063040732,-12013.55573368,0.00032146,7]
[349236120,1737063042712,-305.95052,0.00032146,7]
[349236126,1737063042771,-55428.98163319,0.00032146,7]
[349236128,1737063042786,-610.98359407,0.00032146,7]
[349236129,1737063042833,-2962.40201988,0.00032146,7]
[349236130,1737063042845,-12700.67655452,0.00032146,7]
[349236131,1737063042892,-1169.0,0.00032146,7]
[349236132,1737063042952,-872.03064422,0.00032146,7]
[349236133,1737063043009,-6269.806064,0.00032146,7]
[349236134,1737063043021,-72739.98704136,0.00032146,7]
[349236135,1737063043030,-604023.10438736,0.00032146,30]
[349236136,1737063043041,-2208.4000004,0.00032146,30]
[349236137,1737063043067,-619.0293993,0.00032146,30]
[349236139,1737063045849,-173.40642769,0.000119,2]
[349236140,1737063045858,-3261.97357428,0.00032146,30]
[349236141,1737063045922,-1628.262865,0.00032146,30]
[349236142,1737063045991,-839.6199934,0.00032146,30]
[349236143,1737063046003,-79965.69527469,0.00032146,30]
[349236144,1737063046026,-105503.71919813,0.00032146,30]
[349236145,1737063046037,-2285.60119097,0.00032146,30]
[349236146,1737063046048,-953.0,0.00032146,30]
[349236147,1737063046061,-421.5799658,0.00032146,30]
[349236149,1737063046072,-121190.05582861,0.00032146,30]
[349236152,1737063046095,-156074.42122422,0.00032146,30]
[349236226,1737064032118,-155.64,0.00010137,2]
[349236227,1737064032139,-183.01,0.00012329,2]
[349236228,1737064032160,-103.79044822,0.00027,2]
[349236229,1737064037140,-446.20955178,0.00027,2]
[349236230,1737064037164,-199.98752594,0.00028778,2]
[349236231,1737064047268,-100.01247406,0.00028778,2]
[349236232,1737064047289,-10467.47014557,0.00028779,2]
[349236233,1737064051115,-440.76628566,0.00028779,2]
[349236234,1737064068053,-500.0,0.0001355,2]
[349236235,1737064151081,-163.52,0.00024495,2]
[349236236,1737064151102,-133.81355147,0.00028779,2]
[349236262,1737064232040,-91.5936881,0.00028779,2]
[349236264,1737064232051,-959.42,0.00028879,2]
[349236265,1737064232067,-151.0,0.0003,120]
[349236266,1737064232077,-1044.178653,0.00030267,2]
[349236267,1737064232087,-90.2294114,0.00030319,2]
[349236268,1737064232098,-646.73320424,0.00030319,2]
[349236269,1737064232108,-160.22235708,0.00030319,2]
[349236270,1737064232117,-258.77,0.00030572,2]
[349236271,1737064232127,-250.0,0.00030643,2]
[349236272,1737064232136,-716.62,0.00030667,2]
[349236273,1737064232145,-257.56,0.00030671,120]
[349236274,1737064232156,-1000.0,0.00030696,2]
[349236275,1737064232165,-301.72,0.00030698,2]
[349236276,1737064232175,-153.48,0.00030705,2]
[349236277,1737064232184,-250.0,0.00030728,2]
[349236278,1737064232195,-250.0,0.00030807,2]
[349236279,1737064232204,-23900.0,0.0003081,2]
[349236280,1737064232214,-153.48,0.00030858,2]
[349236281,1737064232224,-1900.0,0.00031,11]
[349236282,1737064232234,-3900.0,0.000311,11]
[349236283,1737064232243,-959.42,0.00031143,2]
[349236284,1737064232252,-5800.0,0.000312,11]
[349236285,1737064232262,-155.64,0.00031279,2]
[349236286,1737064232272,-7800.0,0.000313,11]
[349236287,1737064232281,-683.74,0.00031365,120]
[349236288,1737064232291,-150.0,0.00031399,2]
[349236289,1737064232300,-9700.0,0.000314,11]
[349236290,1737064232311,-150.0,0.00031478,2]
[349236291,1737064232321,-1900.0,0.000315,11]
[349236292,1737064232330,-281.4054676,0.00031502,4]
[349236293,1737064232339,-871.92,0.00031507,2]
[349236294,1737064232349,-150.0,0.00031507,2]
[349236295,1737064232359,-179.38,0.00031568,2]
[349236296,1737064232370,-1900.0,0.000316,11]
[349236297,1737064232380,-1900.0,0.000317,11]
[349236298,1737064232391,-1900.0,0.000318,11]
[349236299,1737064232400,-827.7248036,0.00031844,2]
[349236300,1737064232410,-12959.68948932,0.00031844,2]
[349236301,1737064232420,-894.83762551,0.00031848,2]
[349236302,1737064232430,-22526.56704415,0.0003185,2]
[349236303,1737064232439,-894.83762551,0.00031851,2]
[349236304,1737064232448,-10164.74135749,0.00031855,2]
[349236305,1737064232457,-5413.13770574,0.00031857,2]
[349236306,1737064232466,-200.0,0.00031858,2]
[349236307,1737064232476,-1171.977746,0.0003186,2]
[349236308,1737064232485,-894.83762551,0.00031864,2]
[349236309,1737064232494,-344.34765319,0.00031864,2]
[349236310,1737064232503,-1324.38951881,0.00031868,2]
[349236311,1737064232534,-1928.32771559,0.00031868,2]
[349236312,1737064232543,-5413.13770574,0.00031869,2]
[349236313,1737064232554,-894.83762551,0.00031869,2]
[349236314,1737064232564,-1171.977746,0.00031872,2]
[349236315,1737064232573,-5413.13770574,0.00031876,2]
[349236316,1737064232582,-318.5215792,0.00031884,2]
[349236317,1737064232592,-3698.04775897,0.0003189,2]
[349236329,1737064237732,-422.97571748,0.0003189,2]
[349236332,1737064238147,-49.16004968,0.0003189,2]
[349236337,1737064239959,-500.48339629,0.00023518,30]
[349236338,1737064239969,-8789.50596319,0.0003189,2]
[349236339,1737064239978,-200.0,0.00031891,2]
[349236340,1737064239987,-2478.0,0.000319,11]
[349236341,1737064239997,-200.0,0.00031903,2]
[349236342,1737064240007,-12959.68948932,0.00031905,2]
[349236343,1737064240019,-827.7248036,0.00031915,2]
[349236344,1737064240029,-827.7248036,0.00031917,2]
[349236345,1737064240039,-1171.977746,0.00031918,2]
[349236346,1737064240049,-5413.13770574,0.00031918,2]
[349236347,1737064240060,-200.0,0.00031919,2]
[349236348,1737064240070,-894.83762551,0.00031921,2]
[349236349,1737064240079,-1171.977746,0.00031924,2]
[349236350,1737064240090,-10164.74135749,0.00031927,2]
[349236351,1737064240100,-10164.74135749,0.00031928,2]
[349236352,1737064240109,-5413.13770574,0.00031934,2]
[349236353,1737064240118,-5413.13770574,0.00031938,2]
[349236354,1737064240129,-14100.35759433,0.00031939,2]
[349236355,1737064240154,-2381.53076364,0.00031939,2]
[349236356,1737064240166,-1000.12,0.00031939,2]
[349236357,1737064240178,-526.27679994,0.00031939,2]
[349236358,1737064240190,-422.25836631,0.00031939,2]
[349236416,1737064242927,-4096.02351993,0.00031939,2]
[349236417,1737064242937,-3970.60504762,0.0003194,2]
[349236418,1737064242994,-3.70980095,0.0003194,2]
[349236419,1737064243006,-422.18239962,0.0003194,2]
[349236420,1737064243017,-995.85,0.0003194,2]
[349236421,1737064243028,-684.00911245,0.0003194,2]
[349236422,1737064243039,-6883.33312868,0.0003194,2]
[349236423,1737064243048,-5774.01355279,0.00031941,4]
[349236424,1737064243059,-200.0,0.00031944,2]
[349236425,1737064243068,-10164.74135749,0.00031945,2]
[349236426,1737064243077,-1171.977746,0.00031946,2]
[349236427,1737064243087,-22526.56704415,0.00031946,2]
[349236428,1737064243095,-12959.68948932,0.0003195,2]
[349236429,1737064243105,-3252.7172344,0.00031953,2]
[349236430,1737064243114,-22526.56704415,0.00031958,2]
[349236431,1737064243123,-5774.01355279,0.00031959,4]
[349236432,1737064243133,-10164.74135749,0.00031959,2]
[349236433,1737064243142,-5413.13770574,0.00031961,2]
[349236434,1737064243151,-22526.56704415,0.00031962,2]
[349236435,1737064243160,-344.34765319,0.00031969,2]
[349236436,1737064243170,-10164.74135749,0.00031971,2]
[349236437,1737064243179,-827.7248036,0.00031972,2]
[349236438,1737064243189,-200.0,0.00031974,2]
[349236439,1737064243199,-1171.977746,0.00031976,2]
[349236440,1737064243208,-894.83762551,0.00031976,2]
[349236442,1737064243218,-24028.33818044,0.00031979,4]
[349236444,1737064243227,-13823.66878862,0.00031981,4]
[349236446,1737064243236,-200.0,0.00031981,2]
[349236448,1737064243246,-1000.0,0.00031985,2]
[349236450,1737064243255,-10842.39078133,0.0003199,4]
[349236452,1737064243264,-24028.33818044,0.00031993,4]
[349236455,1737064243274,-894.83762551,0.00031997,2]
[349236457,1737064243284,-12959.68948932,0.00031997,2]
[349236459,1737064243293,-200.0,0.00031998,2]
[349236461,1737064243303,-10842.39078133,0.00032,4]
[349236463,1737064243312,-12959.68948932,0.00032,2]
[349236464,1737064243322,-565.8427,0.00032,2]
[349236465,1737064243331,-5413.13770574,0.00032001,2]
[349236476,1737064243492,-22526.56704415,0.00032003,2]
[349236477,1737064243506,-7509.2731,0.0003201,2]
[349236478,1737064243516,-4617.9776,0.0003201,2]
[349236480,1737064243525,-6009.6663,0.0003201,2]
[349236481,1737064243534,-1000.0,0.0003201,2]
[349236482,1737064243543,-2500.0,0.0003201,2]
[349236483,1737064243553,-24028.33818044,0.0003201,4]
[349236484,1737064243562,-22526.56704415,0.00032013,2]
[349236485,1737064243571,-827.7248036,0.00032014,2]
[349236486,1737064243580,-344.34765319,0.00032015,2]
[349236487,1737064243589,-200.0,0.00032015,2]
[349236488,1737064243598,-1250.10959563,0.00032016,4]
[349236489,1737064243608,-200.0,0.00032017,2]
[349236490,1737064243617,-10164.74135749,0.00032019,2]
[349236491,1737064243627,-10164.74135749,0.00032023,2]
[349236492,1737064243639,-318.5215792,0.00032024,2]
[349236493,1737064243649,-827.7248036,0.00032026,2]
[349236494,1737064243658,-344.34765319,0.00032026,2]
[349236495,1737064243667,-344.34765319,0.0003203,2]
[349236496,1737064243677,-318.5215792,0.0003203,2]
[349236497,1737064243687,-344.34765319,0.00032032,2]
[349236498,1737064243696,-13823.66878862,0.00032036,4]
[349236499,1737064243705,-5774.01355279,0.00032038,4]
[349236500,1737064243716,-200.0,0.00032039,2]
[349236501,1737064243725,-192.363159,0.0003204,2]
[349236502,1737064243735,-192.36315896,0.00032041,2]
[349236503,1737064243744,-192.36315896,0.00032041,2]
[349236504,1737064243753,-192.36315896,0.00032042,2]
[349236505,1737064243762,-192.36315896,0.00032043,2]
[349236506,1737064243772,-192.36315896,0.00032043,2]
[349236507,1737064243782,-24028.33818044,0.00032044,4]
[349236508,1737064243791,-192.36315896,0.00032044,2]
[349236509,1737064243802,-192.36315896,0.00032045,2]
[349236510,1737064243811,-200.0,0.00032045,2]
[349236511,1737064243821,-192.36315896,0.00032045,2]
[349236512,1737064243830,-5000.0,0.00032046,2]
[349236513,1737064243839,-166.73794238,0.00032046,3]
[349236514,1737064243850,-2179.343,0.00032046,31]
[349236515,1737064243859,-182.2,0.00032046,31]
[349236516,1737064243869,-270.80641707,0.00032046,4]
[349236517,1737064243878,-192.36315896,0.00032046,2]
[349236518,1737064243888,-248.48607,0.00032046,2]
[349236519,1737064243898,-660.67377422,0.00032046,2]
[349236520,1737064243907,-1728.54321073,0.00032046,2]
[349236521,1737064243917,-1384.6170358,0.00032046,2]
[349236522,1737064243926,-153.92585718,0.00032046,2]
[349236523,1737064243936,-5412.9584,0.00032046,2]
[349236524,1737064243945,-1710.6681,0.00032046,2]
[349236525,1737064243955,-1500.0,0.00032046,2]
[349236526,1737064243965,-1000.0,0.00032046,2]
[349236527,1737064243975,-200.0,0.0003205,2]
[349236528,1737064243985,-10842.39078133,0.0003205,4]
[349236529,1737064243995,-1246.55,0.00032055,2]
[349236530,1737064244005,-438.08,0.00032055,2]
[349236531,1737064244015,-200.0,0.00032056,2]
[349236532,1737064244025,-200.0,0.00032056,2]
[349236533,1737064244035,-1250.10959563,0.00032056,4]
[349236534,1737064244044,-1171.977746,0.00032059,2]
[349236535,1737064244054,-200.0,0.0003206,2]
[349236536,1737064244064,-200.0,0.00032061,2]
[349236537,1737064244074,-5774.01355279,0.00032063,4]
[349236538,1737064244083,-13823.66878862,0.00032064,4]
[349236539,1737064244092,-200.0,0.00032066,2]
[349236540,1737064244101,-1171.977746,0.00032068,2]
[349236541,1737064244111,-318.5215792,0.00032075,2]
[349236542,1737064244120,-1250.10959563,0.00032077,4]
[349236543,1737064244129,-10842.39078133,0.00032079,4]
[349236544,1737064244139,-24028.33818044,0.00032082,4]
[349236545,1737064244149,-1250.10959563,0.00032086,4]
[349236546,1737064244159,-5774.01355279,0.00032087,4]
[349236547,1737064244169,-200.0,0.00032088,2]
[349236548,1737064244178,-13823.66878862,0.00032089,4]
[349236549,1737064244188,-22526.56704415,0.00032089,2]
[349236550,1737064244197,-318.5215792,0.0003209,2]
[349236551,1737064244207,-13823.66878862,0.00032092,4]
[349236552,1737064244216,-318.5215792,0.00032092,2]
[349236553,1737064244226,-344.34765319,0.00032094,2]
[349236554,1737064244235,-3252.7172344,0.00032095,2]
[349236555,1737064244245,-1250.10959563,0.00032096,4]
[349236556,1737064244255,-12959.68948932,0.00032098,2]
[349236557,1737064244265,-30547.73032874,0.000321,2]
[349236558,1737064244273,-581.85788647,0.000321,3]
[349236559,1737064244283,-51816.94392422,0.000321,3]
[349236560,1737064245838,-833.3775,0.0003191,2]
[349236561,1737064245848,-534242.33089245,0.000321,3]
[349236562,1737064245897,-36355.83961833,0.000321,3]
[349236563,1737064245906,-295.35885204,0.000321,30]
[349236564,1737064245916,-1000.0,0.000321,2]
[349236565,1737064245925,-124339.0,0.0003211,2]
[349236566,1737064245934,-8011.72448624,0.0003214,120]
[349236567,1737064245944,-666.0,0.00032145,10]
[349236568,1737064245953,-1061.29224117,0.00032145,15]
[349236569,1737064245962,-1273.75190912,0.00032145,2]
[349236570,1737064245972,-1000.0,0.00032145,2]
[349236571,1737064245981,-1000.0,0.00032145,2]
[349236572,1737064245991,-1000.0,0.00032145,2]
[349236573,1737064246000,-1000.0,0.00032145,2]
[349236574,1737064246009,-1000.0,0.00032145,2]
[349236575,1737064246020,-1000.0,0.00032145,2]
[349236576,1737064246029,-1000.0,0.00032145,2]
[349236577,1737064246038,-1000.0,0.00032145,2]
[349236578,1737064246048,-1000.0,0.00032145,2]
[349236579,1737064246058,-436.87224041,0.00032145,2]
[349236580,1737064246068,-500.0,0.00032145,2]
[349236581,1737064246078,-3000.0,0.00032145,2]
[349236582,1737064246087,-213550.73509355,0.00032146,7]
[349236583,1737064246099,-780.60377805,0.00032146,7]
[349236584,1737064246111,-487.32910508,0.00032146,7]
[349236585,1737064246155,-171497.02933632,0.00032146,7]
[349236586,1737064246174,-5531.16518323,0.00032146,7]
[349236587,1737064246186,-3949.3,0.00032146,7]
[349236588,1737064246197,-543.2619752,0.00032146,7]
[349236590,1737064709548,158.17,0.00010137,2]
[349236591,1737064709774,158.17,0.00016813,2]
[349236594,1737065237117,-199.0,0.00022999,2]
[349236595,1737065237141,-405.0,0.00022999,2]
[349236596,1737065237162,-500.0,0.00023,2]
[349236597,1737065237185,-400.27158898,0.00023,2]
[349236598,1737065245113,-99.72841102,0.00023,2]
[349236599,1737065245136,-500.0,0.00023,2]
[349236600,1737065245159,-500.0,0.00023,2]
[349236601,1737065245191,-500.0,0.00023,2]
[349236602,1737065245211,-500.0,0.00023,2]
[349236603,1737065245232,-191.45826554,0.00023,2]
[349236604,1737065372142,-308.54173446,0.00023,2]
[349236605,1737065372164,-337.54941441,0.00023,2]
[349236606,1737065391533,-162.45058559,0.00023,2]
[349236607,1737065391555,-500.0,0.00023,2]
[349236608,1737065391578,-500.0,0.00023,2]
[349236609,1737065391603,-500.0,0.00023,2]
[349236610,1737065391629,-500.0,0.00023,2]
[349236611,1737065391651,-531.13317919,0.00023,2]
[349236612,1737065391675,-5000.0,0.00023,7]
[349236613,1737065391701,-1490.07623522,0.00023,2]
[349236614,1737065398948,-1257.81477286,0.00023,2]
[349236620,1737065432381,-158.17,0.0002349,2]
[349236621,1737065432391,-234.91355647,0.00026099,2]
[349236628,1737065432522,-65.08644353,0.00026099,2]
[349236629,1737065432533,-500.0,0.000261,30]
[349236630,1737065432543,-458.27880894,0.000261,30]
[349236631,1737065432554,-41.72119106,0.000261,30]
[349236632,1737065432564,-500.0,0.000261,30]
[349236634,1737065432573,-87.91355647,0.000261,30]
[349236636,1737065432585,-412.08644353,0.000261,30]
[349236637,1737065432595,-171.23760832,0.000261,30]
[349236638,1737065432607,-328.76239168,0.000261,30]
[349236639,1737065432617,-449.46760832,0.000261,30]
[349236640,1737065432641,-50.53239168,0.000261,30]
[349236641,1737065432652,-500.0,0.000261,30]
[349236642,1737065432662,-283.57295657,0.000261,30]
[349236643,1737065432678,-216.42704343,0.000261,30]
[349236644,1737065432687,-500.0,0.000261,30]
[349236645,1737065432696,-500.0,0.000261,30]
[349236646,1737065432706,-500.0,0.000261,30]
[349236647,1737065432716,-500.0,0.000261,30]
[349236648,1737065432726,-500.0,0.000261,30]
[349236649,1737065432735,-550.0,0.00027,2]
[349236650,1737065432744,-945.33,0.00028233,2]
[349236651,1737065432753,-420.0,0.00028242,2]
[349236652,1737065432763,-600.0,0.00029,2]
[349236653,1737065432772,-200.0,0.000299,2]
[349236654,1737065432782,-2897.748,0.0003,3]
[349236655,1737065432792,-1053.17,0.00030068,2]
[349236656,1737065432801,-150.0,0.0003013,2]
[349236657,1737065432811,-158.17,0.00030166,2]
[349236658,1737065432820,-547.57,0.00030171,2]
[349236659,1737065432830,-11194.12,0.00030346,2]
[349236660,1737065432840,-908.52970346,0.00030497,2]
[349236661,1737065432852,-36.80029654,0.00030497,2]
[349236662,1737065432863,-587.0,0.00030561,2]
[349236663,1737065432872,-1000.0,0.00030589,2]
[349236664,1737065432881,-500.0,0.00030591,2]
[349236665,1737065432891,-2751.0,0.00030613,120]
[349236666,1737065432900,-250.0,0.00030715,2]
[349236667,1737065432910,-250.0,0.00030756,2]
[349236668,1737065432919,-11551.0,0.00030879,2]
[349236669,1737065432929,-200.0,0.00031,11]
[349236670,1737065432939,-1000.0,0.00031099,2]
[349236671,1737065432949,-500.0,0.000311,11]
[349236672,1737065432959,-3139.016,0.000311,28]
[349236673,1737065432968,-174.755,0.000311,28]
[349236674,1737065432978,-500.0,0.00031102,2]
[349236675,1737065432987,-11372.0287035,0.00031133,2]
[349236676,1737065432999,-915.47591036,0.00031133,2]
[349236677,1737065433011,-11612.49538614,0.00031133,2]
[349236678,1737065433021,-800.0,0.000312,11]
[349236679,1737065433031,-250.0,0.00031221,2]
[349236680,1737065433041,-1100.0,0.000313,11]
[349236681,1737065433051,-1400.0,0.000314,11]
[349236682,1737065433060,-3185.16,0.00031471,2]
[349236683,1737065433070,-5557.0,0.000315,5]
[349236684,1737065433084,-200.0,0.000315,11]
[349236685,1737065433094,-281.4054677,0.00031502,4]
[349236686,1737065433104,-200.0,0.000316,11]
[349236687,1737065433115,-1000.0,0.0003162,2]
[349236688,1737065433126,-2500.0,0.0003162,2]
[349236689,1737065433135,-166.98,0.00031639,2]
[349236690,1737065433145,-200.0,0.000317,11]
[349236691,1737065433156,-1000.0,0.000317,2]
[349236692,1737065433165,-61523.10082571,0.0003172,120]
[349236693,1737065433194,-39118.29901183,0.0003172,120]
[349236694,1737065433218,-1349.84479405,0.0003172,120]
[349236695,1737065433230,-945.24598585,0.0003172,120]
[349236700,1737065438134,-463.4202856,0.0003172,120]
[349236701,1737065438145,-694.93008762,0.0003172,120]
[349236702,1737065438158,-1618.68827999,0.0003172,120]
[349236703,1737065438175,-2000.22208548,0.0003172,120]
[349236704,1737065438198,-467.05,0.0003172,120]
[349236705,1737065438221,-3412.39,0.0003172,120]
[349236722,1737065440097,-3318.96264027,0.0003172,120]
[349236723,1737065440109,-8497.70858381,0.0003172,120]
[349236724,1737065440119,-200.0,0.000318,11]
[349236725,1737065440128,-1000.0,0.000318,2]
[349236726,1737065440138,-1434.0227174,0.000318,2]
[349236727,1737065440157,-148.9772826,0.000318,2]
[349236728,1737065440167,-220.5341,0.0003181,2]
[349236729,1737065440177,-3000.0,0.0003182,2]
[349236730,1737065440187,-2008.75187084,0.00031843,2]
[349236731,1737065440196,-200.0,0.00031844,2]
[349236732,1737065440206,-250.27172344,0.00031845,2]
[349236733,1737065440215,-250.27172344,0.0003185,2]
[349236734,1737065440224,-200.0,0.00031851,2]
[349236735,1737065440233,-711.56450199,0.00031851,2]
[349236736,1737065440243,-200.0,0.00031851,2]
[349236737,1737065440252,-200.0,0.00031855,2]
[349236738,1737065440262,-2210.43846478,0.00031855,2]
[349236739,1737065440271,-1036.77515915,0.00031856,2]
[349236740,1737065440284,-433.05101646,0.00031857,2]
[349236741,1737065440306,-200.0,0.00031858,2]
[349236742,1737065440322,-310.99408704,0.00031858,2]
[349236743,1737065440332,-310.99408704,0.00031861,2]
[349236744,1737065440342,-200.0,0.00031865,2]
[349236745,1737065440353,-200.0,0.00031868,2]
[349236746,1737065440365,-1036.77515914,0.00031868,2]
[349236747,1737065440375,-310.99408704,0.0003187,2]
[349236748,1737065440384,-200.0,0.0003187,2]
[349236749,1737065440394,-1036.77515915,0.00031875,2]
[349236750,1737065440403,-433.05101646,0.00031877,2]
[349236751,1737065440412,-1036.77515915,0.00031877,2]
[349236752,1737065440422,-1036.77515914,0.00031877,2]
[349236753,1737065440431,-1036.77515915,0.00031879,2]
[349236754,1737065440441,-3793.54314109,0.0003188,2]
[349236755,1737065440451,-200.0,0.00031881,2]
[349236756,1737065440461,-2008.75187084,0.00031882,2]
[349236757,1737065440471,-433.05101645,0.00031882,2]
[349236758,1737065440480,-433.05101645,0.00031884,2]
[349236759,1737065440490,-813.1793086,0.00031886,2]
[349236760,1737065440499,-433.05101646,0.00031887,2]
[349236761,1737065440508,-200.0,0.00031891,2]
[349236762,1737065440517,-813.1793086,0.00031892,2]
[349236763,1737065440526,-828.1793086,0.00031893,2]
[349236764,1737065440535,-813.1793086,0.00031893,2]
[349236765,1737065440545,-2008.75187084,0.00031893,2]
[349236767,1737065440554,-1036.77515915,0.00031893,2]
[349236769,1737065440564,-3793.54314109,0.00031893,2]
[349236770,1737065440573,-1036.77515914,0.00031894,2]
[349236771,1737065440582,-250.27172344,0.00031894,2]
[349236772,1737065440592,-828.1793086,0.00031896,2]
[349236773,1737065440601,-429.57121047,0.00031896,2]
[349236774,1737065440611,-1786.35080905,0.00031896,2]
[349236775,1737065440620,-1786.35080905,0.00031898,2]
[349236776,1737065440629,-1036.77515914,0.00031899,2]
[349236777,1737065440639,-433.05101646,0.00031899,2]
[349236778,1737065440648,-1032.0,0.000319,11]
[349236779,1737065440657,-2210.43846478,0.00031901,2]
[349236780,1737065440667,-711.56450199,0.00031902,2]
[349236781,1737065440676,-429.57121047,0.00031903,2]
[349236782,1737065440686,-1036.77515915,0.00031903,2]
[349236783,1737065440695,-2210.43846478,0.00031909,2]
[349236784,1737065440704,-200.0,0.0003191,2]
[349236785,1737065440713,-433.05101646,0.0003191,2]
[349236786,1737065440723,-2008.75187084,0.00031911,2]
[349236787,1737065440733,-433.05101645,0.00031912,2]
[349236788,1737065440742,-200.0,0.00031912,2]
[349236789,1737065440751,-2210.43846478,0.00031912,2]
[349236790,1737065440760,-828.1793086,0.00031914,2]
[349236791,1737065440770,-310.99408704,0.00031915,2]
[349236792,1737065440779,-1786.35080905,0.00031915,2]
[349236793,1737065440791,-429.57121047,0.00031922,2]
[349236794,1737065440801,-813.1793086,0.00031924,2]
[349236795,1737065440811,-813.1793086,0.00031928,2]
[349236796,1737065440820,-250.27172344,0.0003193,2]
[349236797,1737065440829,-813.1793086,0.00031931,2]
[349236798,1737065440838,-2210.43846478,0.00031932,2]
[349236799,1737065440848,-429.57121047,0.00031936,2]
[349236800,1737065440857,-433.05101645,0.00031938,2]
[349236801,1737065440866,-310.99408704,0.0003194,2]
[349236802,1737065440876,-828.1793086,0.0003194,2]
[349236803,1737065441014,-310.99408704,0.00031942,2]
[349236804,1737065441023,-1105.8935031,0.00031943,4]
[349236805,1737065441033,-200.0,0.00031943,2]
[349236806,1737065441045,-2357.8010291,0.00031944,4]
[349236807,1737065441054,-461.92108422,0.00031945,4]
[349236808,1737065441063,-200.0,0.00031945,2]
[349236809,1737065441073,-2357.8010291,0.00031945,4]
[349236810,1737065441087,-759.00213546,0.00031946,4]
[349236811,1737065441096,-828.1793086,0.00031946,2]
[349236812,1737065441106,-883.39126251,0.00031947,4]
[349236813,1737065441116,-1105.89350309,0.00031947,4]
[349236814,1737065441125,-1905.44086299,0.00031948,4]
[349236815,1737065441134,-828.1793086,0.00031951,2]
[349236816,1737065441143,-200.0,0.00031952,2]